bitfinex-derivatives/quotes_SOLF0:USTF0_20250310
["timestamp","ask_amount","ask_price","bid_price","bid_amount"]
[1741621284362,45.5924378,123.39,123.36,0.05327415]
[1741621284859,45.5924378,123.39,123.32,62.0]
[1741621285160,8.1073,123.37,123.33,8.1094]
[1741621285360,4.2091,123.38,123.29,3.5225]
[1741621285559,4.2091,123.38,123.29,49.0625]
[1741621286065,0.05659633,123.35,123.32,0.0590785]
[1741621286259,0.05659633,123.35,123.33,45.54]
[1741621286452,0.05659633,123.35,123.32,0.05429245]
[1741621286658,8.16499633,123.35,123.32,0.05429245]
[1741621286959,0.05659633,123.35,123.32,0.05429245]
[1741621287158,49.7491,123.34,123.27,1.62245477]
[1741621287358,8.1121,123.3,123.27,1.62245477]
[1741621287570,54.0154,123.34,123.24,45.54]
[1741621288067,54.0154,123.34,123.25,62.0]
[1741621288463,8.16549398,123.31,123.28,0.06048231]
[1741621288856,8.1117,123.3,123.28,0.06048231]
[1741621289060,0.05409398,123.31,123.28,0.06048231]
[1741621289768,0.05409398,123.31,123.28,45.58048231]
[1741621290565,8.1121,123.3,123.28,0.06048231]
[1741621290765,0.05409398,123.31,123.28,0.06048231]
[1741621291668,8.1124,123.29,123.28,0.06048231]
[1741621291859,0.05409398,123.31,123.23,62.0]
[1741621292057,520.8079,123.3,123.08,482.96173975]
[1741621292365,195.56429236,123.29,123.08,482.96173975]
[1741621292564,187.7279,123.28,123.08,482.96173975]
[1741621292764,187.7279,123.28,123.06,3.6394]
[1741621292967,7.83656029,123.27,123.11,8.1241]
[1741621293168,7.83656029,123.27,123.16,0.06101961]
[1741621293169,0.06005229,123.18,123.16,0.06101961]
[1741621293368,267.62005229,123.18,123.16,0.06101961]
[1741621293568,8.1208,123.17,123.1,8.1244]
[1741621293770,8.1208,123.17,123.16,0.05818044]
[1741621294072,8.1208,123.17,123.12,8.1236]
[1741621294268,275.73830761,123.18,123.15,0.05907145]
[1741621294471,267.61850761,123.18,123.09,45.52]
[1741621294669,267.61850761,123.18,123.15,0.05387334]
[1741621294970,267.61850761,123.18,123.16,62.0]
[1741621294971,267.6197378,123.18,123.16,62.0]
[1741621295367,1.00368648,126.15,123.16,64.44]
[1741621295368,267.66,123.27,123.16,64.44]
[1741621295666,187.7279,123.31,123.18,8.1192]
[1741621295667,267.66,123.28,123.18,8.1192]
[1741621295866,8.1156,123.25,123.19,45.54]
[1741621296065,267.66,123.28,123.19,45.54]
[1741621296259,8.1174,123.22,123.19,45.54]
[1741621296564,0.058415,123.25,123.22,2.413e-05]
[1741621296760,45.52,123.27,123.13,8.1225]
[1741621296966,8.1187,123.2,123.12,45.52]
[1741621297166,12.1991,123.26,123.12,45.52]
[1741621297370,12.1991,123.26,123.13,45.52]
[1741621297672,0.05707082,123.21,123.18,0.06014953]
[1741621297867,8.1213,123.16,123.1,45.52]
[1741621298275,8.1213,123.16,123.1,45.54]
[1741621298571,8.1221,123.15,123.09,45.54]
[1741621298762,45.52,123.17,123.1,62.0]
[1741621299067,8.225,123.16,123.1,62.0]
[1741621299267,0.05453385,123.15,123.04,45.52]
[1741621299463,0.05453385,123.15,123.05,8.1276]
[1741621299667,8.225,123.16,123.04,45.52]
[1741621300571,8.1249,123.1,123.09,0.05207034]
[1741621300773,267.8,123.12,123.09,0.05207034]
[1741621300973,0.05322866,123.11,123.09,0.05207034]
[1741621302177,0.05322866,123.11,123.09,62.05207034]
[1741621302977,0.05322866,123.11,123.09,0.05207034]
[1741621303475,0.05322866,123.11,123.02,45.54]
[1741621303675,267.8,123.12,123.02,49.8151]
[1741621304376,313.34,123.12,123.01,3.9573]
[1741621304576,0.05535634,123.08,123.06,0.05322715]
[1741621305971,0.05535634,123.08,123.06,62.05322715]
[1741621306676,0.05535634,123.08,123.07,8.1269]
[1741621307872,267.8,123.12,123.06,62.05322715]
[1741621308373,3.999,123.15,123.12,8.1232]
[1741621308577,4.0488,123.16,123.07,49.7278]
[1741621308773,267.94,123.17,123.08,8.1691]
[1741621308969,267.94,123.17,123.15,8.1215]
[1741621309172,267.94,123.17,123.11,45.54]
[1741621310074,267.94,123.17,123.13,8.1225]
[1741621310282,4.934e-05,123.15,123.13,0.05982886]
[1741621310684,267.94,123.23,123.22,8.117]
[1741621310870,267.94,123.23,123.1,267.94]
[1741621310871,267.94,123.23,123.18,45.54]
[1741621311076,267.94,123.23,123.15,45.54]
[1741621311578,0.060207,123.2,123.18,0.05801103]
[1741621311783,0.060207,123.2,123.19,8.1186]
[1741621311982,0.060207,123.2,123.18,0.05801103]
[1741621312375,0.060207,123.2,123.19,8.119]
[1741621312571,0.060207,123.2,123.18,0.05801103]
[1741621313282,0.060207,123.2,123.19,62.0]
[1741621314277,0.060207,123.2,123.18,0.05801103]
[1741621315079,8.178607,123.2,123.18,0.05801103]
[1741621315277,0.060207,123.2,123.18,0.05801103]
[1741621315782,55.51083731,123.19,123.04,267.88]
[1741621315983,55.51083731,123.17,123.09,49.6548]
[1741621316277,3.9565,123.18,123.1,55.51083731]
[1741621316678,3.9565,123.18,123.09,49.6548]
[1741621316876,0.05701916,123.15,123.13,0.05833671]
[1741621317278,0.05701916,123.15,123.13,62.05833671]
[1741621317882,0.05701916,123.15,123.13,0.05833671]
[1741621318086,55.56785647,123.15,123.07,8.4508]
[1741621318276,59.81233731,123.15,123.09,8.1253]
[1741621318482,327.71233731,123.15,123.05,4.0493]
[1741621319081,55.51083731,123.13,123.05,4.0493]
[1741621319281,55.51083731,123.13,122.98,459.88]
[1741621319282,55.56428566,123.11,123.09,0.05236456]
[1741621319482,8.1259,123.09,123.04,8.1283]
[1741621319783,55.51083731,123.11,123.01,101.01083731]
[1741621320384,8.1257,123.09,123.04,8.1289]
[1741621320585,0.05661411,123.07,123.05,0.05621649]
[1741621320783,0.05661411,123.07,123.06,62.0]
[1741621321091,0.05661411,123.07,123.05,0.05621649]
[1741621321484,0.05661411,123.07,123.05,8.18401649]
[1741621322095,0.05661411,123.07,123.05,0.05621649]
[1741621323681,8.1286,123.05,122.98,45.5]
[1741621323889,55.51083731,123.06,122.99,62.0]
[1741621324088,368.95083731,123.08,122.99,62.0]
[1741621324281,313.44,123.08,122.99,107.5]
[1741621324691,55.51083731,123.06,122.99,62.0]
[1741621324886,0.05799726,123.05,123.02,0.05545279]
[1741621325287,55.51083731,123.04,123.02,0.05545279]
[1741621325494,55.51083731,123.04,122.99,62.0]
[1741621325495,101.01083731,123.04,122.99,62.0]
[1741621325683,4.2161,123.03,122.95,97.21417933]
[1741621325889,55.51083731,123.0,122.9,45.5]
[1741621326091,55.51083731,123.02,122.91,55.51083731]
[1741621326394,8.132,123.0,122.9,53.8945]
[1741621326598,8.132,123.0,122.91,45.5]
[1741621326599,55.51083731,123.0,122.91,45.5]
[1741621326789,0.05211919,122.96,122.95,8.1348]
[1741621327289,0.05211919,122.96,122.94,8.19286003]
[1741621327494,0.05211919,122.96,122.94,0.05756003]
[1741621328086,55.5629565,122.96,122.83,395.00246132]
[1741621328287,55.5629565,122.96,122.85,54.0682]
[1741621328595,55.51083731,122.96,122.85,8.5682]
[1741621328898,55.51083731,122.92,122.86,62.0]
[1741621329098,55.51083731,122.9,122.86,62.0]
[1741621329289,55.51083731,122.88,122.84,84.66830754]
[1741621329488,55.51083731,122.86,122.84,84.66830754]
[1741621329900,55.57098807,122.86,122.84,0.05717301]
[1741621330087,0.06015076,122.86,122.84,0.05717301]
[1741621330996,55.51083731,122.85,122.84,0.05717301]
[1741621331395,0.06015076,122.86,122.84,0.05717301]
[1741621332888,0.06015076,122.86,122.85,8.1414]
[1741621333291,59.63293731,122.95,122.85,103.47083731]
[1741621333488,59.63293731,122.95,122.85,101.03083731]
[1741621333489,4.1221,122.95,122.85,101.03083731]
[1741621333688,45.52,122.96,122.85,101.03083731]
[1741621334188,323.77083731,122.97,122.85,45.52]
[1741621334391,323.77083731,122.97,122.89,0.0623799]
[1741621334700,0.05248854,122.92,122.89,45.52]
[1741621335001,55.51083731,122.99,122.92,0.05961227]
[1741621335296,55.51083731,122.97,122.9,3.9369]
[1741621335500,55.51083731,122.95,122.86,45.52]
[1741621335701,55.51083731,122.95,122.85,45.52]
[1741621335902,55.51083731,122.95,122.87,62.0]
[1741621336199,0.05339812,122.91,122.89,0.05163973]
[1741621336591,0.05339812,122.91,122.89,8.18993973]
[1741621336793,0.05339812,122.91,122.89,0.05163973]
[1741621338394,55.56423543,122.91,122.89,0.05163973]
[1741621338804,0.05339812,122.91,122.89,0.05163973]
[1741621341616,45.52,122.96,122.89,0.05163973]
[1741621341617,8.1337,122.97,122.89,0.05163973]
[1741621341907,4.1116,122.98,122.87,163.03083731]
[1741621342111,4.1116,122.98,122.88,8.1391]
[1741621342309,55.51083731,122.95,122.87,107.52]
[1741621342506,101.03083731,122.95,122.87,107.52]
[1741621342705,45.52,122.95,122.87,107.52]
[1741621342901,0.05712408,122.92,122.9,0.05173535]
[1741621343100,8.1338,122.97,122.92,8.1363]
[1741621343307,0.05430922,122.92,122.87,163.03083731]
[1741621343507,55.51083731,122.99,122.93,0.05282928]
[1741621343712,322.0719,123.0,122.95,8.1342]
[1741621344009,313.94,123.0,122.91,45.52]
[1741621344406,8.1332,122.98,122.91,45.52]
[1741621344609,55.51083731,122.99,122.94,0.05591489]
[1741621344811,0.05885321,122.97,122.94,0.05591489]
[1741621346311,8.19235321,122.97,122.94,0.05591489]
[1741621346507,45.5,122.96,122.94,0.05591489]
[1741621346815,63.64563731,122.95,122.94,0.00342635]
[1741621347011,55.51083731,122.95,122.87,62.0]
[1741621347715,8.1357,122.94,122.9,8.1378]
[1741621347912,45.5,122.96,122.87,62.0]
[1741621348112,45.5,122.96,122.87,117.51083731]
[1741621348319,0.05276788,122.93,122.9,0.05673082]
[1741621349431,0.05276788,122.93,122.9,8.19453082]
[1741621349611,0.05276788,122.93,122.9,0.05673082]
[1741621351115,0.05276788,122.93,122.92,8.1368]
[1741621351714,6.788e-05,122.93,122.92,8.1368]
[1741621352329,6.788e-05,122.93,122.9,0.05673082]
[1741621352917,6.788e-05,122.93,122.92,8.1368]
[1741621353220,6.788e-05,122.93,122.9,0.05673082]
[1741621355228,6.788e-05,122.93,122.91,62.0]
[1741621355725,6.788e-05,122.93,122.92,8.1368]
[1741621357613,6.788e-05,122.93,122.91,8.1371]
[1741621358016,6.788e-05,122.93,122.9,0.05673082]
[1741621358215,6.788e-05,122.93,122.92,8.1368]
[1741621359530,6.788e-05,122.93,122.9,0.05673082]
[1741621360028,6.788e-05,122.93,122.91,62.0]
[1741621360423,6.788e-05,122.93,122.92,8.1368]
[1741621361026,6.788e-05,122.93,122.92,53.5968]
[1741621361728,6.68416942,122.99,122.92,51.9383]
[1741621361926,41.32287525,123.05,122.95,55.51083731]
[1741621362128,490.85463017,123.06,122.99,8.1321]
[1741621362428,10.708312,123.05,122.96,49.4308]
[1741621362823,0.06045403,123.02,122.99,0.05142422]
[1741621364026,0.06045403,123.02,122.99,62.05142422]
[1741621364233,8.19115403,123.02,122.99,0.05142422]
[1741621364627,10.60125562,123.01,122.99,0.05142422]
[1741621364827,10.60125562,123.01,123.0,8.1315]
[1741621365225,0.06045403,123.02,122.99,0.05142422]
[1741621366130,0.06045403,123.02,122.99,4.39142422]
[1741621366527,0.06045403,123.02,122.99,0.05142422]
[1741621367737,0.06045403,123.02,123.0,45.42]
[1741621368333,0.06045403,123.02,122.99,0.05142422]
[1741621370335,0.06045403,123.02,122.99,8.18322422]
[1741621370629,0.06045403,123.02,123.0,62.0]
[1741621370832,0.06045403,123.02,122.99,0.05142422]
[1741621371132,100.91083731,123.01,122.87,100.91083731]
[1741621371335,55.51083731,122.99,122.88,8.1766]
[1741621371530,10.62888161,122.98,122.88,8.1766]
[1741621371732,8.1338,122.97,122.93,8.1356]
[1741621372031,100.91083731,122.97,122.88,8.1766]
[1741621372336,10.68497503,122.96,122.88,8.1766]
[1741621372526,10.62888161,122.96,122.91,0.05417591]
[1741621372833,0.05151771,122.93,122.91,0.05417591]
[1741621373036,55.56235502,122.93,122.91,0.05417591]
[1741621373230,8.1368,122.92,122.91,0.05417591]
[1741621373732,100.96235502,122.93,122.91,0.05417591]
[1741621374126,100.96235502,122.93,122.88,62.0]
[1741621374334,55.51083731,122.91,122.84,4.1491]
[1741621374640,100.91083731,122.93,122.84,4.1491]
[1741621375535,0.06068978,122.9,122.87,0.05798302]
[1741621376433,0.06068978,122.9,122.88,8.139]
[1741621376834,0.06068978,122.9,122.87,0.05798302]
[1741621377034,0.06068978,122.9,122.88,8.1394]
[1741621377329,0.06068978,122.9,122.87,0.05798302]
[1741621377536,0.06068978,122.9,122.88,8.1393]
[1741621377732,0.06068978,122.9,122.87,0.05798302]
[1741621377937,0.06068978,122.9,122.88,8.139]
[1741621378136,0.06068978,122.9,122.87,0.05798302]
[1741621379135,0.06068978,122.9,122.87,8.19778302]
[1741621379936,0.06068978,122.9,122.87,0.05798302]
[1741621380338,8.19898978,122.9,122.87,0.05798302]
[1741621380639,0.06068978,122.9,122.87,0.05798302]
[1741621382138,8.1391,122.89,122.87,0.05798302]
[1741621382335,0.06068978,122.9,122.87,0.05798302]
[1741621383340,8.1393,122.89,122.87,0.05798302]
[1741621383533,0.06068978,122.9,122.87,0.05798302]
[1741621383733,8.1394,122.88,122.87,0.05798302]
[1741621383936,0.06068978,122.9,122.87,0.05798302]
[1741621384636,0.06068978,122.9,122.89,8.1388]
[1741621384834,0.06068978,122.9,122.87,0.05798302]
[1741621385636,8.1351,122.95,122.91,8.1371]
[1741621385841,34.32514345,122.94,122.85,45.38]
[1741621386137,8.1378,122.91,122.87,8.1398]
[1741621386345,34.32514345,122.94,122.85,45.38]
[1741621386641,0.06119306,122.91,122.88,0.05685084]
[1741621386837,34.32514345,122.9,122.82,49.4892]
[1741621387137,8.19183252,122.91,122.88,8.19159439]
[1741621387346,0.0587213,122.91,122.88,0.06127228]
[1741621387741,0.0587213,122.91,122.88,8.20057228]
[1741621388046,0.0587213,122.91,122.88,0.06127228]
[1741621388635,307.09624345,122.97,122.88,34.38641573]
[1741621388636,268.46,122.97,122.88,34.38641573]
[1741621388840,34.32514345,122.99,122.94,8.1352]
[1741621389137,34.32514345,122.99,122.91,45.36]
[1741621389338,8.1331,122.98,122.93,8.1361]
[1741621389541,34.32514345,122.99,122.91,45.36]
[1741621389842,0.05877041,122.96,122.94,0.05739427]
[1741621390347,268.46,123.02,122.94,0.05739427]
[1741621390537,55.6921454,123.03,122.95,45.36]
[1741621390738,4.1279,123.04,122.95,45.36]
[1741621390941,4.1279,123.04,123.01,8.1307]
[1741621391137,44.99015868,123.05,122.96,59.6801454]
[1741621391441,44.99015868,123.05,122.98,8.1324]
[1741621391643,0.05823973,123.02,122.99,45.39389445]
[1741621392134,44.99015868,123.05,123.0,4.1754]
[1741621392333,268.44,123.07,123.0,4.1754]
[1741621392742,276.5673,123.07,123.01,8.1304]
[1741621392939,59.9104454,123.08,123.0,4.1754]
[1741621393137,11.24753967,123.1,123.05,8.1279]
[1741621393345,55.6921454,123.08,123.03,0.05118748]
[1741621393539,55.6921454,123.08,123.0,70.2162]
[1741621393741,55.6921454,123.08,123.04,0.05866388]
[1741621394038,0.05286892,123.05,123.04,0.05866388]
[1741621394644,11.24753967,123.1,123.04,45.37866388]
[1741621395643,4.2183,123.12,123.04,45.37866388]
[1741621395845,0.06196388,123.08,123.0,70.2162]
[1741621396140,101.0121454,123.09,123.07,0.06165411]
[1741621396341,0.05137684,123.05,123.01,45.32]
[1741621396546,55.6921454,123.05,122.98,45.32]
[1741621396841,8.1295,123.03,123.02,0.05281301]
[1741621397147,0.0604872,123.04,123.02,0.05281301]
[1741621398342,8.1295,123.03,123.02,0.05281301]
[1741621398537,55.6921454,123.03,122.96,49.288]
[1741621398946,55.6921454,123.03,122.96,3.988]
[1741621399445,8.1309,123.01,122.96,3.988]
[1741621399749,0.05377251,123.0,122.97,0.05480967]
[1741621399948,8.18527251,123.0,122.97,0.05480967]
[1741621400146,0.05377251,123.0,122.97,0.05480967]
[1741621400346,55.6921454,122.99,122.9,8.5385]
[1741621400551,8.1353,122.95,122.9,8.1379]
[1741621400743,8.1353,122.95,122.89,45.28]
[1741621400744,55.6921454,122.97,122.89,45.28]
[1741621401247,55.6921454,122.95,122.86,8.466]
[1741621401451,55.6921454,122.93,122.83,49.2331]
[1741621401643,45.33181636,122.92,122.83,3.9531]
[1741621401847,45.33181636,122.92,122.87,0.05866125]
[1741621401848,55.6921454,122.91,122.87,0.05866125]
[1741621402040,55.7509468,122.89,122.82,223.92459808]
[1741621402245,55.7509468,122.89,122.82,215.78139808]
[1741621402751,55.7509468,122.89,122.82,223.92469808]
[1741621402752,8.1396,122.88,122.82,223.92469808]
[1741621402954,45.28,122.95,122.82,215.78139808]
[1741621403155,8.139,122.89,122.83,62.0]
[1741621403353,0.06075765,122.9,122.87,0.06185101]
[1741621403554,55.6921454,122.93,122.87,0.06185101]
[1741621403743,0.05903431,122.9,122.87,0.06185101]
[1741621405047,55.75117971,122.9,122.87,0.06185101]
[1741621405556,0.05903431,122.9,122.87,0.06185101]
[1741621407055,0.05903431,122.9,122.88,8.1389]
[1741621407253,0.05903431,122.9,122.87,0.06185101]
[1741621407649,0.05903431,122.9,122.87,8.20165101]
[1741621408057,0.05903431,122.9,122.87,0.06185101]
[1741621410154,0.05903431,122.9,122.88,8.1394]
[1741621410348,0.05903431,122.9,122.87,0.06185101]
[1741621410754,0.05903431,122.9,122.89,8.1388]
[1741621412153,59.8543454,122.96,122.93,8.1356]
[1741621412354,313.62,122.97,122.93,8.1356]
[1741621412554,313.62,122.97,122.88,45.26]
[1741621412755,45.26,123.0,122.89,55.6921454]
[1741621413056,55.6921454,122.99,122.89,55.6921454]
[1741621413253,55.6921454,122.99,122.92,8.1364]
[1741621413456,0.06012132,122.95,122.93,0.05179556]
[1741621414053,8.1355,122.94,122.93,0.05179556]
[1741621414660,8.1366,122.93,122.88,45.26]
[1741621414959,55.6921454,122.95,122.87,0.5]
[1741621415154,8.136,122.94,122.9,8.1378]
[1741621415658,55.6921454,122.95,122.91,8.1371]
[1741621415860,0.06088397,122.93,122.91,0.05499173]
[1741621416052,8.397e-05,122.93,122.91,0.05499173]
[1741621416255,8.397e-05,122.93,122.92,8.1364]
[1741621416953,8.397e-05,122.93,122.92,18.9454]
[1741621417359,8.397e-05,122.93,122.92,20.7721]
[1741621417763,8.397e-05,122.93,122.91,8.19209173]
[1741621417961,8.397e-05,122.93,122.91,0.05499173]
[1741621418464,8.13658397,122.93,122.91,0.05499173]
[1741621418761,8.397e-05,122.93,122.91,0.05499173]
[1741621419068,8.13678397,122.93,122.91,0.05499173]
[1741621419261,8.397e-05,122.93,122.91,0.05499173]
[1741621419862,45.22,122.92,122.87,0.5]
[1741621420062,55.6921454,122.91,122.87,0.5]
[1741621420265,63.8315454,122.89,122.81,4.0172]
[1741621420461,55.6921454,122.89,122.83,8.1425]
[1741621420663,45.22,122.88,122.8,4.2526]
[1741621421064,0.05225158,122.85,122.83,0.05245331]
[1741621422766,0.05225158,122.85,122.84,8.1421]
[1741621423072,44.99015868,123.04,122.83,0.05245331]
[1741621423073,45.22,122.93,122.83,0.05245331]
[1741621423269,45.22,122.93,122.82,45.22]
[1741621423665,63.8068454,122.94,122.83,55.6921454]
[1741621423969,4.0571,122.94,122.85,55.6921454]
[1741621424172,7.888e-05,122.9,122.87,55.74813327]
[1741621424370,7.888e-05,122.9,122.87,55.6921454]
[1741621424570,7.888e-05,122.9,122.89,8.1388]
[1741621426269,7.888e-05,122.9,122.89,70.1388]
[1741621426474,7.888e-05,122.9,122.89,128.2709454]
[1741621427474,7.888e-05,122.9,122.89,125.8309454]
[1741621428074,7.888e-05,122.9,122.89,128.2709454]
[1741621428274,7.888e-05,122.9,122.89,129.8579454]
[1741621428576,7.888e-05,122.9,122.89,132.2979454]
[1741621429782,7.888e-05,122.9,122.89,12.1658]
[1741621430671,7.888e-05,122.9,122.89,8.1388]
[1741621432877,7.888e-05,122.9,122.89,70.1388]
[1741621439685,7.888e-05,122.9,122.89,72.5788]
[1741621440385,7.888e-05,122.9,122.89,70.1388]
[1741621442589,7.888e-05,122.9,122.89,128.2709454]
[1741621443783,4.3335,123.01,122.89,2.44]
[1741621443991,55.6921454,122.91,122.84,17.01170936]
[1741621444185,322.0683,122.9,122.78,129.46883885]
[1741621444382,55.6921454,122.88,122.8,8.1447]
[1741621444586,55.6921454,122.88,122.78,129.46883885]
[1741621444785,8.1406,122.87,122.78,129.46883885]
[1741621444988,45.12,122.86,122.78,129.46883885]
[1741621445288,0.05883788,122.84,122.82,0.05838104]
[1741621446793,0.05883788,122.84,122.83,62.0]
[1741621452891,0.05883788,122.84,122.83,70.1427]
[1741621453188,0.05883788,122.84,122.82,0.05838104]
[1741621453392,0.05883788,122.84,122.83,8.1427]
[1741621453593,0.05883788,122.84,122.82,0.05838104]
[1741621453996,55.75098328,122.84,122.76,8.269]
[1741621454195,8.1449,122.8,122.76,8.269]
[1741621454384,55.6921454,122.82,122.76,8.269]
[1741621454584,55.6921454,122.82,122.74,4.1968]
[1741621454792,8.1451,122.8,122.74,4.1968]
[1741621454985,55.6921454,122.82,122.74,4.1968]
[1741621455193,0.05593227,122.78,122.76,0.05838415]
[1741621455598,0.05593227,122.78,122.76,8.20568415]
[1741621455786,0.05593227,122.78,122.76,0.05838415]
[1741621456187,55.74807767,122.78,122.76,0.05838415]
[1741621456491,55.74807767,122.78,122.7,133.46633885]
[1741621456688,55.6921454,122.75,122.7,129.46883885]
[1741621457094,268.58,122.76,122.7,174.56883885]
[1741621457296,55.6921454,122.75,122.7,129.46883885]
[1741621457493,55.6921454,122.75,122.67,220.5034157]
[1741621457694,8.20801032,122.74,122.72,0.05527193]
[1741621457887,0.05881032,122.74,122.72,0.05527193]
[1741621458986,55.6921454,122.73,122.72,0.05527193]
[1741621459194,55.6921454,122.73,122.68,62.0]
[1741621459394,63.8417454,122.73,122.68,70.1523]
[1741621459595,55.6921454,122.73,122.68,62.0]
[1741621460197,55.6921454,122.73,122.69,8.1517]
[1741621460402,0.05705563,122.72,122.69,0.05371329]
[1741621461299,0.05705563,122.72,122.69,8.20541329]
[1741621461492,0.05705563,122.72,122.69,0.05371329]
[1741621461994,63.8433454,122.71,122.69,0.05371329]
[1741621462189,63.8433454,122.71,122.66,8.1537]
[1741621462396,55.6921454,122.71,122.64,8.3128]
[1741621462699,8.1514,122.7,122.66,8.1537]
[1741621463001,8.1514,122.7,122.6,55.6921454]
[1741621463002,55.6921454,122.69,122.6,45.12]
[1741621463196,324.48427176,122.69,122.59,12.3705]
[1741621463396,55.6921454,122.67,122.61,62.0]
[1741621463590,4.3165,122.68,122.61,62.0]
[1741621463801,12.4699,122.68,122.61,62.0]
[1741621464003,4.3165,122.68,122.61,62.0]
[1741621464201,55.6921454,122.66,122.61,62.0]
[1741621464498,45.12,122.65,122.63,0.05947507]
[1741621464702,55.74882593,122.66,122.63,0.05947507]
[1741621464899,0.05668053,122.66,122.63,0.05947507]
[1741621465202,0.05668053,122.66,122.61,62.0]
[1741621465504,55.6921454,122.62,122.61,62.0]
[1741621466605,55.6921454,122.62,122.61,70.1574]
[1741621466800,55.6921454,122.62,122.61,62.0]
[1741621468504,55.6921454,122.62,122.55,8.1529]
[1741621468808,55.6921454,122.57,122.55,8.1616]
[1741621469105,55.6921454,122.57,122.5,53.2514]
[1741621469402,55.6921454,122.57,122.51,62.0]
[1741621469907,55.6921454,122.52,122.4,86.31255923]
[1741621470206,55.6921454,122.46,122.4,90.65285923]
[1741621470402,55.6921454,122.46,122.45,0.05507901]
[1741621470609,55.6921454,122.46,122.4,90.65285923]
[1741621470803,0.05914868,122.47,122.44,0.05726167]
[1741621471104,55.6921454,122.46,122.44,0.05726167]
[1741621472104,45.16,122.45,122.4,86.31255923]
[1741621472303,55.6921454,122.41,122.4,86.31255923]
[1741621472503,100.8521454,122.41,122.39,129.46883885]
[1741621473203,100.90667325,122.41,122.39,116.59464722]
[1741621473411,100.90667325,122.41,122.38,211.67076886]
[1741621473606,55.6921454,122.39,122.38,211.67076886]
[1741621474408,55.6921454,122.39,122.35,8.1749]
[1741621474810,55.6921454,122.44,122.36,45.18]
[1741621475109,55.6921454,122.44,122.37,49.3259]
[1741621475407,324.9321454,122.47,122.38,8.2453]
[1741621475910,269.24,122.47,122.38,63.9374454]
[1741621476110,0.05375757,122.44,122.41,0.0546551]
[1741621476411,0.05375757,122.44,122.42,107.18]
[1741621477215,0.05375757,122.44,122.42,62.0]
[1741621477514,0.05375757,122.44,122.41,0.0546551]
[1741621479304,0.05375757,122.44,122.38,8.2453]
[1741621479507,187.7279,122.37,122.1,479.03368313]
[1741621479712,232.9079,122.36,122.18,55.6921454]
[1741621479907,232.9079,122.36,122.25,8.1819]
[1741621479908,55.6921454,122.34,122.25,8.1819]
[1741621480112,55.6921454,122.34,122.23,45.18]
[1741621480314,55.6921454,122.31,122.21,45.18]
[1741621480512,0.06069436,122.3,122.22,62.0]
[1741621480822,55.6921454,122.28,122.22,62.0]
[1741621481122,0.05418629,122.27,122.23,45.2]
[1741621481417,100.8921454,122.34,122.23,45.2]
[1741621481620,100.8921454,122.34,122.25,8.1821]
[1741621481919,100.8921454,122.34,122.23,45.2]
[1741621482313,55.6921454,122.34,122.23,100.8921454]
[1741621482712,0.05620384,122.3,122.27,0.05248209]
[1741621482915,0.05620384,122.3,122.27,8.23318209]
[1741621483125,100.8921454,122.37,122.27,45.25248209]
[1741621483416,100.8921454,122.4,122.3,8.1788]
[1741621483720,100.8921454,122.4,122.27,45.2]
[1741621483919,55.6921454,122.37,122.3,8.1786]
[1741621484219,0.05638998,122.35,122.32,0.05151857]
[1741621484617,0.05638998,122.35,122.31,8.178]
[1741621484812,100.8921454,122.4,122.32,0.06246184]
[1741621485218,0.05505355,122.34,122.33,8.1768]
[1741621485524,55.6921454,122.4,122.35,0.06217001]
[1741621485712,55.6921454,122.43,122.35,45.2]
[1741621486216,55.6921454,122.43,122.36,8.1742]
[1741621486412,55.6921454,122.39,122.23,24.52]
[1741621486619,55.6921454,122.39,122.22,89.44301029]
[1741621486620,55.6921454,122.24,122.09,62.0]
[1741621486819,55.6921454,122.2,122.09,62.0]
[1741621487019,0.05936617,122.18,122.15,0.05672176]
[1741621487221,0.05936617,122.18,122.04,63.7068454]
[1741621487222,316.92,122.17,121.85,269.58]
[1741621487519,55.6921454,122.14,122.0,55.6921454]
[1741621487714,55.6921454,122.17,122.03,55.6921454]
[1741621487916,55.6921454,122.22,122.06,55.6921454]
[1741621488119,55.6921454,122.22,122.07,3.9611]
[1741621488313,55.6921454,122.22,122.13,0.06240214]
[1741621488521,0.05799218,122.15,122.14,8.1896]
[1741621488717,55.6921454,122.22,122.13,51.98]
[1741621488922,55.6921454,122.25,122.13,49.52]